bitfinex/quotes_BTCUSD_20250314
["timestamp","ask_amount","ask_price","bid_price","bid_amount"]
[1741980536575,0.31259496,84832.0,84828.0,0.235768]
[1741980537396,0.01259496,84832.0,84829.0,0.235766]
[1741980537618,0.01259496,84832.0,84830.0,0.235763]
[1741980537846,0.3,84834.0,84833.0,0.234757]
[1741980538191,0.3,84834.0,84833.0,0.246544]
[1741980538445,0.3,84834.0,84833.0,0.234757]
[1741980538446,0.01232238,84834.0,84833.0,0.234757]
[1741980538683,0.235733,84842.0,84838.0,0.235742]
[1741980538883,0.3,84841.0,84838.0,0.235742]
[1741980540244,0.01251325,84842.0,84840.0,0.235737]
[1741980540474,0.235751,84835.0,84833.0,0.001]
[1741980540687,0.3,84837.0,84833.0,0.001]
[1741980540919,0.3,84837.0,84832.0,0.235758]
[1741980541331,0.3,84837.0,84830.0,0.235765]
[1741980541540,0.3,84837.0,84835.0,0.23575]
[1741980541680,0.011786,84841.0,84835.0,0.23575]
[1741980541681,0.3,84841.0,84840.0,0.011786]
[1741980541895,0.3,84841.0,84840.0,0.235737]
[1741980542321,0.235685,84859.0,84845.0,0.235723]
[1741980542529,0.247479,84856.0,84845.0,0.235723]
[1741980542732,0.235697,84855.0,84845.0,0.235723]
[1741980543112,0.011783,84868.0,84845.0,0.247509]
[1741980543322,0.01240366,84850.0,84845.0,0.370909]
[1741980544125,0.01240366,84850.0,84845.0,0.359123]
[1741980544331,0.01240366,84850.0,84845.0,0.235723]
[1741980544766,0.01240366,84850.0,84845.0,0.250509]
[1741980544984,0.01240366,84850.0,84845.0,0.253509]
[1741980545189,0.01240366,84850.0,84845.0,0.241723]
[1741980548755,0.01240366,84850.0,84845.0,0.253509]
[1741980550712,0.02077336,84863.0,84845.0,0.253509]
[1741980550713,0.3,84861.0,84845.0,0.253509]
[1741980550944,0.01222838,84852.0,84845.0,0.253509]
[1741980556246,0.01222838,84852.0,84845.0,0.388349]
[1741980557887,0.02236716,84846.0,84845.0,0.388349]
[1741980558797,0.02236716,84846.0,84845.0,0.006]
[1741980559362,0.02236716,84846.0,84845.0,0.241723]
[1741980559653,0.02236716,84846.0,84845.0,0.331509]
[1741980561095,0.02236716,84846.0,84845.0,0.319723]
[1741980562064,0.02236716,84846.0,84845.0,0.331509]
[1741980572698,0.02236716,84846.0,84845.0,0.34604985]
[1741980574158,0.02236716,84846.0,84845.0,0.36960838]
[1741980574574,0.0003394,84846.0,84845.0,0.36960838]
[1741980575461,0.0003394,84846.0,84845.0,0.36660838]
[1741980575662,0.0003394,84846.0,84845.0,0.36360838]
[1741980575883,0.0003394,84846.0,84845.0,0.37260838]
[1741980576345,0.0003394,84846.0,84845.0,0.36760838]
[1741980576601,0.0003394,84846.0,84845.0,0.34904985]
[1741980576832,0.0003394,84846.0,84845.0,0.40584985]
[1741980577069,0.0003394,84846.0,84845.0,0.41084985]
[1741980579371,0.0003394,84846.0,84845.0,0.1488]
[1741980579887,0.0003394,84846.0,84845.0,0.160586]
[1741980580717,0.0003394,84846.0,84845.0,0.155586]
[1741980581874,0.0003394,84846.0,84845.0,0.146586]
[1741980582128,0.0003394,84846.0,84845.0,0.155586]
[1741980582348,0.0003394,84846.0,84845.0,0.1438]
[1741980582570,0.0003394,84846.0,84845.0,0.155586]
[1741980582898,0.0003394,84846.0,84845.0,0.1438]
[1741980583543,0.0003394,84846.0,84845.0,0.009]
[1741980583751,0.0121254,84846.0,84845.0,0.009]
[1741980584006,0.0003394,84846.0,84845.0,0.009]
[1741980585240,0.0003394,84846.0,84844.0,0.238032]
[1741980585442,0.0003394,84846.0,84845.0,0.011786]
[1741980585650,0.0003394,84846.0,84844.0,0.238032]
[1741980586615,0.0003394,84846.0,84844.0,0.243032]
[1741980588171,0.01882005,84846.0,84844.0,0.243032]
[1741980589055,0.01882005,84846.0,84844.0,0.231246]
[1741980589258,0.011786,84845.0,84844.0,0.005]
[1741980589604,0.25454205,84846.0,84844.0,0.005]
[1741980590119,0.25454205,84846.0,84842.0,0.23573]
[1741980590526,0.25454205,84846.0,84844.0,0.0001696]
[1741980590678,0.01882005,84846.0,84844.0,0.0001696]
[1741980590880,0.01882005,84846.0,84845.0,0.235723]
[1741980591082,0.01882005,84846.0,84844.0,0.2358946]
[1741980591929,0.01882005,84846.0,84844.0,0.2388946]
[1741980592282,0.01882005,84846.0,84844.0,0.2358946]
[1741980592623,0.01882005,84846.0,84844.0,0.2388946]
[1741980593687,0.01882005,84846.0,84844.0,0.2418946]
[1741980594299,0.03060605,84846.0,84844.0,0.0061696]
[1741980594518,0.26632905,84846.0,84844.0,0.0061696]
[1741980597427,0.011786,84845.0,84844.0,0.0061696]
[1741980598294,0.26632905,84846.0,84844.0,0.0031696]
[1741980598439,0.01882005,84846.0,84844.0,0.0001696]
[1741980598638,0.01882005,84846.0,84844.0,0.0031696]
[1741980598925,0.01882005,84846.0,84844.0,0.0061696]
[1741980599246,0.25454105,84846.0,84844.0,0.0061696]
[1741980599428,0.01882005,84846.0,84844.0,0.0031696]
[1741980599770,0.01882005,84846.0,84844.0,0.0061696]
[1741980600378,0.10468046,84845.0,84844.0,0.0061696]
[1741980600601,0.359486,84845.0,84844.0,0.0061696]
[1741980601376,0.309486,84845.0,84844.0,0.0061696]
[1741980601525,0.321272,84845.0,84844.0,0.0061696]
[1741980601763,0.321272,84845.0,84844.0,0.0031696]
[1741980601946,0.321272,84845.0,84844.0,0.0011696]
[1741980602326,0.321272,84845.0,84844.0,0.0041696]
[1741980602735,0.321272,84845.0,84844.0,0.0011696]
[1741980603107,0.321272,84845.0,84844.0,0.0021696]
[1741980606543,0.311786,84845.0,84844.0,0.0021696]
[1741980606745,0.547509,84845.0,84844.0,0.0021696]
[1741980606985,0.0003394,84846.0,84844.0,0.0021696]
[1741980607144,0.0003394,84846.0,84845.0,0.247509]
[1741980607747,0.0003394,84846.0,84845.0,0.33994985]
[1741980609131,0.0003394,84846.0,84845.0,0.34094985]
[1741980609579,0.0003394,84846.0,84845.0,0.33994985]
[1741980609761,0.0003394,84846.0,84845.0,0.38504985]
[1741980609963,0.0003394,84846.0,84845.0,0.39104985]
[1741980610166,0.0003394,84846.0,84845.0,0.38804985]
[1741980610566,0.0003394,84846.0,84845.0,0.39204985]
[1741980612458,4e-07,84846.0,84845.0,0.44704985]
[1741980612841,4e-07,84846.0,84845.0,0.48380031]
[1741980613039,4e-07,84846.0,84845.0,0.78380031]
[1741980613474,0.0003394,84864.0,84863.0,0.373156]
[1741980613679,0.0003394,84864.0,84863.0,0.52249685]
[1741980614049,0.0188151,84864.0,84863.0,0.52249685]
[1741980614960,0.0188151,84864.0,84863.0,0.01454085]
[1741980615158,0.0188151,84864.0,84863.0,0.14930085]
[1741980615356,0.0188151,84864.0,84863.0,0.15230085]
[1741980615531,0.0188151,84864.0,84863.0,0.15630085]
[1741980615891,0.0188151,84864.0,84863.0,0.39197385]
[1741980616032,0.0003394,84864.0,84863.0,0.39197385]
[1741980616415,0.0003394,84864.0,84863.0,0.14176]
[1741980618020,0.0003394,84864.0,84863.0,0.007]
[1741980618480,0.0003394,84864.0,84863.0,0.018783]
[1741980620934,0.0003394,84864.0,84863.0,0.03332385]
[1741980623031,0.0003394,84864.0,84863.0,0.11022385]
[1741980623480,0.0003394,84864.0,84863.0,0.007]
[1741980623711,0.0121224,84864.0,84863.0,0.007]
[1741980623945,0.0003394,84864.0,84863.0,0.153503]
[1741980624162,0.0003394,84864.0,84863.0,0.230403]
[1741980624394,0.0003394,84864.0,84863.0,0.23158116]
[1741980625077,0.0003394,84864.0,84863.0,0.230403]
[1741980625486,0.0003394,84864.0,84863.0,0.226403]
[1741980625697,0.0003394,84864.0,84863.0,0.228403]
[1741980625965,0.0003394,84864.0,84863.0,0.22958115]
[1741980627092,0.0003394,84864.0,84863.0,0.23358115]
[1741980627765,0.0003394,84864.0,84863.0,0.232403]
[1741980628499,0.0003394,84864.0,84863.0,0.23358115]
[1741980629395,0.0003394,84864.0,84863.0,0.248122]
[1741980629639,0.0003394,84864.0,84863.0,0.24694385]
[1741980630116,0.0003394,84864.0,84863.0,0.02354085]
[1741980630355,0.0003394,84864.0,84863.0,0.17004385]
[1741980634387,0.0003394,84864.0,84863.0,0.03532385]
[1741980634619,0.0003394,84864.0,84863.0,0.17004385]
[1741980636508,0.0003394,84864.0,84863.0,0.21722207]
[1741980637340,0.0003394,84864.0,84863.0,0.21604385]
[1741980638613,0.0003394,84864.0,84863.0,0.21722201]
[1741980638815,0.0003394,84864.0,84863.0,0.17004385]
[1741980640321,0.01881432,84864.0,84863.0,0.17004385]
[1741980649744,0.01881432,84864.0,84863.0,0.03532385]
[1741980649931,0.01881432,84864.0,84863.0,0.17000385]
[1741980650128,0.01881432,84864.0,84863.0,0.03532385]
[1741980650299,0.01881432,84864.0,84863.0,0.17000385]
[1741980651129,0.01881432,84864.0,84863.0,0.009]
[1741980651281,0.31881432,84864.0,84863.0,0.009]
[1741980651490,0.3003394,84864.0,84863.0,0.009]
[1741980652320,0.3121224,84864.0,84863.0,0.009]
[1741980653239,0.3121224,84864.0,84863.0,0.004]
[1741980653563,0.3121224,84864.0,84863.0,0.005]
[1741980653765,0.3121224,84864.0,84863.0,0.001]
[1741980654177,0.3121224,84864.0,84863.0,0.002]
[1741980654400,0.33059991,84864.0,84863.0,0.002]
[1741980654678,0.42196735,84864.0,84863.0,0.002]
[1741980658713,0.01881691,84864.0,84863.0,0.002]
[1741980658897,0.01881691,84864.0,84863.0,0.02832385]
[1741980659164,0.0003394,84864.0,84863.0,0.02832385]
[1741980659579,0.0003394,84864.0,84863.0,0.10830208]
[1741980659791,0.0003394,84864.0,84863.0,0.10730208]
[1741980659995,0.0003394,84864.0,84863.0,0.10630208]
[1741980660222,0.0003394,84864.0,84863.0,0.11112385]
[1741980660664,0.0003394,84864.0,84863.0,0.10630191]
[1741980660867,0.0003394,84864.0,84863.0,0.11030191]
[1741980661069,0.0003394,84864.0,84863.0,0.11430191]
[1741980661922,0.0188134,84864.0,84863.0,0.11312385]
[1741980663262,0.0188134,84864.0,84863.0,0.16900385]
[1741980663662,0.0188134,84864.0,84863.0,0.154463]
[1741980663933,0.0188134,84864.0,84863.0,0.16900385]
[1741980665869,0.0188134,84864.0,84863.0,0.15722085]
[1741980666122,0.0188134,84864.0,84863.0,0.16900385]
[1741980666753,0.0188134,84864.0,84863.0,0.02254085]
[1741980666956,0.0188134,84864.0,84863.0,0.15722085]
[1741980667160,0.0188134,84864.0,84863.0,0.16900385]
[1741980670451,0.0188134,84864.0,84863.0,0.02254085]
[1741980670678,0.0188134,84864.0,84863.0,0.14264]
[1741980671090,0.0003394,84864.0,84863.0,0.14264]
[1741980672869,0.0003394,84864.0,84863.0,0.008]
[1741980673802,0.0188148,84864.0,84863.0,0.008]
[1741980674901,0.5544858,84864.0,84863.0,0.008]
[1741980675105,0.5662688,84864.0,84863.0,0.008]
[1741980675523,0.5477934,84864.0,84863.0,0.008]
[1741980676982,0.3003394,84864.0,84863.0,0.008]
[1741980678211,0.33059994,84864.0,84863.0,0.008]
[1741980679930,0.31881694,84864.0,84863.0,0.008]
[1741980681138,0.01881694,84864.0,84863.0,0.03432385]
[1741980682175,0.01881694,84864.0,84863.0,0.02254085]
[1741980682390,0.01881694,84864.0,84863.0,0.03432385]
[1741980685274,0.0003394,84864.0,84863.0,0.03432385]
[1741980688392,0.01881478,84864.0,84863.0,0.03432385]
[1741980692121,0.01881478,84864.0,84863.0,0.02254085]
[1741980692349,0.01881478,84864.0,84863.0,0.008]
[1741980693042,0.03059778,84864.0,84863.0,0.008]
[1741980694082,0.33059778,84864.0,84863.0,0.008]
[1741980694844,0.31881478,84864.0,84863.0,0.008]
[1741980695976,0.01881478,84864.0,84863.0,0.008]
[1741980700941,0.01881478,84864.0,84863.0,0.019783]
[1741980704241,0.01881478,84864.0,84863.0,0.015783]
[1741980704617,0.01881478,84864.0,84863.0,0.011783]
[1741980704939,0.01881478,84864.0,84863.0,0.017783]
[1741980705140,0.01881478,84864.0,84863.0,0.006]
[1741980714491,0.01881478,84864.0,84863.0,0.017783]
[1741980717580,0.01881478,84864.0,84863.0,0.006]
[1741980722789,0.01881478,84864.0,84863.0,0.017783]
[1741980723232,0.01881478,84864.0,84863.0,0.006]
[1741980728875,0.01881478,84864.0,84863.0,0.017783]
[1741980734494,0.01881478,84864.0,84863.0,0.006]
[1741980735076,0.01881478,84864.0,84863.0,0.017783]
[1741980735828,0.01881478,84864.0,84863.0,0.08142385]
[1741980736025,0.01881478,84864.0,84863.0,0.16252385]
[1741980736232,0.18001262,84890.0,84877.0,0.34305685]
[1741980736471,0.3,84889.0,84877.0,0.47761685]
[1741980736616,0.0003392,84892.0,84888.0,0.235604]
[1741980736822,0.0003392,84892.0,84891.0,0.26191585]
[1741980736999,0.0003392,84892.0,84891.0,0.39647585]
[1741980737823,0.01270037,84892.0,84891.0,0.39647585]
[1741980738425,0.01270037,84892.0,84877.0,0.1302]
[1741980738426,0.011781,84880.0,84877.0,0.001]
[1741980738633,0.247413,84878.0,84877.0,0.13556]
[1741980739429,0.26588705,84878.0,84877.0,0.13556]
[1741980739651,0.26588705,84878.0,84877.0,0.13456]
[1741980739856,0.26588705,84878.0,84877.0,0.13856]
[1741980740009,0.01847405,84878.0,84877.0,0.13856]
[1741980740424,0.01847405,84878.0,84877.0,0.14156]
[1741980740622,0.03059425,84878.0,84877.0,0.14156]
[1741980741568,0.40569425,84878.0,84877.0,0.007]
[1741980741743,0.45489425,84878.0,84877.0,0.003]
[1741980741946,0.45489425,84878.0,84877.0,0.006]
[1741980742157,0.45489425,84878.0,84846.0,0.0598556]
[1741980742158,0.011785,84847.0,84846.0,0.0001696]
[1741980742337,0.5475,84849.0,84846.0,0.0001696]
[1741980742611,0.247502,84848.0,84846.0,0.10599353]
[1741980742782,0.3,84849.0,84846.0,0.10599353]
[1741980742982,0.33049004,84849.0,84846.0,0.10599353]
[1741980743181,0.03049004,84849.0,84846.0,0.10599353]
[1741980743368,0.03049004,84849.0,84848.0,0.235715]
[1741980743566,0.03049004,84849.0,84846.0,0.34171253]
[1741980743793,0.03049004,84849.0,84846.0,0.34371253]
[1741980745470,0.26620504,84849.0,84846.0,0.10799353]
[1741980745685,0.27799004,84849.0,84846.0,0.10599353]
[1741980747129,0.04227504,84849.0,84846.0,0.10599353]
[1741980747330,0.03049004,84849.0,84846.0,0.10599353]
[1741980747760,0.03049004,84849.0,84846.0,0.0001696]
[1741980747962,0.03938902,84849.0,84846.0,0.0001696]
[1741980748122,0.03938902,84849.0,84847.0,0.235718]
[1741980749311,0.03938902,84849.0,84847.0,0.236718]
[1741980749465,0.03938902,84849.0,84847.0,0.237718]
[1741980750136,0.03938902,84849.0,84848.0,0.011785]
[1741980750367,0.03938902,84849.0,84847.0,0.237718]
[1741980751985,0.03938902,84849.0,84847.0,0.236718]
[1741980753181,0.03938902,84849.0,84848.0,0.0001696]
[1741980754182,0.01201019,84849.0,84848.0,0.02649545]
[1741980754388,0.308891,84856.0,84853.0,0.011785]
[1741980754588,0.308891,84856.0,84854.0,0.235698]
[1741980754800,0.235675,84863.0,84854.0,0.235698]
[1741980755052,0.0003392,84864.0,84854.0,0.011784]
[1741980755249,0.3003392,84864.0,84859.0,0.235682]
[1741980755456,0.011783,84862.0,84856.0,0.23569]
[1741980755657,0.31270699,84864.0,84860.0,0.23568]
[1741980755896,0.01270699,84864.0,84863.0,0.25021385]
[1741980756098,0.01270699,84864.0,84863.0,0.25899685]
[1741980756213,0.01670699,84864.0,84863.0,0.25899685]
[1741980756415,0.01670699,84864.0,84863.0,0.30879685]
[1741980756611,0.01270699,84864.0,84863.0,0.30679685]
[1741980757614,0.0003392,84864.0,84863.0,0.38329685]
[1741980758047,2e-07,84864.0,84863.0,0.38329685]
[1741980758250,0.0020002,84864.0,84863.0,0.38329685]
[1741980758655,2e-07,84864.0,84863.0,0.38429685]
[1741980758855,2e-07,84864.0,84863.0,0.38329685]
[1741980759055,2e-07,84864.0,84863.0,0.38429685]
[1741980759264,2e-07,84864.0,84863.0,0.38529685]
[1741980759464,2e-07,84864.0,84863.0,0.38329685]
[1741980759670,2e-07,84864.0,84863.0,0.38829685]
[1741980759880,2e-07,84864.0,84863.0,0.39629685]
[1741980760090,2e-07,84864.0,84863.0,0.69229685]
[1741980760270,2e-07,84864.0,84863.0,0.69829685]
[1741980761303,2e-07,84864.0,84863.0,0.69429685]
[1741980761524,2e-07,84864.0,84863.0,0.69929685]
[1741980761723,2e-07,84864.0,84863.0,1.10789685]
[1741980761953,0.01847586,84872.0,84871.0,0.252433]
[1741980762107,0.01847586,84872.0,84871.0,0.328433]
[1741980762306,0.01847586,84872.0,84871.0,0.34197385]
[1741980762511,0.01847586,84872.0,84871.0,0.39167385]
[1741980763421,0.01847586,84872.0,84871.0,0.39767385]
[1741980764358,0.01847586,84872.0,84871.0,1.90367385]
[1741980764485,0.01847586,84872.0,84871.0,1.89967385]
[1741980764688,0.01847586,84872.0,84871.0,0.39967385]
[1741980764918,0.01847586,84872.0,84871.0,0.42354415]
[1741980765119,0.01847586,84872.0,84871.0,0.55802415]
[1741980770305,0.01847586,84872.0,84871.0,1.30622415]
[1741980771611,8.6e-07,84872.0,84871.0,1.30622415]
[1741980771993,0.0003392,84878.0,84877.0,0.247416]
[1741980772827,0.0003392,84878.0,84877.0,0.26195685]
[1741980773620,0.0003392,84878.0,84877.0,0.26695685]
[1741980773828,0.0003392,84878.0,84877.0,0.252416]
[1741980774038,0.0003392,84878.0,84877.0,0.380115]
[1741980774207,0.0003392,84878.0,84877.0,0.39465585]
[1741980774442,0.0013392,84878.0,84877.0,0.380075]
[1741980774843,0.01981214,84878.0,84877.0,0.245635]
[1741980775717,0.01981214,84878.0,84877.0,0.240635]
[1741980775851,0.01981214,84878.0,84877.0,0.238635]
[1741980777259,0.01981214,84878.0,84877.0,0.241635]
[1741980779330,0.01981214,84878.0,84877.0,0.253416]
[1741980779478,0.01881214,84878.0,84877.0,0.26795685]
[1741980781252,0.0003392,84878.0,84877.0,0.26795685]
[1741980784186,0.01881146,84878.0,84877.0,0.26795685]
[1741980785303,0.0003392,84878.0,84877.0,0.26795685]
[1741980786461,0.36266437,84902.0,84901.0,0.235568]
[1741980786874,0.00871628,84903.0,84901.0,0.235568]
[1741980787076,0.49646896,84910.0,84905.0,0.235557]
[1741980787329,0.3,84909.0,84905.0,0.235557]
[1741980787534,0.01264046,84906.0,84905.0,0.235557]
[1741980788667,0.03411089,84906.0,84905.0,0.235557]
[1741980789175,0.03411089,84906.0,84905.0,0.234557]
[1741980789402,0.03411089,84906.0,84903.0,0.235561]
[1741980789605,0.011778,84903.0,84898.0,0.13444]
[1741980789747,0.235567,84902.0,84898.0,0.370015]
[1741980789951,0.3,84904.0,84898.0,0.370015]
[1741980790164,0.3,84904.0,84899.0,0.235574]
[1741980790387,0.235562,84903.0,84899.0,0.235574]
[1741980790608,0.3,84904.0,84898.0,0.13444]
[1741980790841,0.3,84904.0,84900.0,0.235569]
[1741980791042,0.3,84905.0,84901.0,0.235566]
[1741980791501,0.001,84904.0,84878.0,0.01454085]
[1741980791693,0.3,84890.0,84886.0,0.13444]
[1741980792322,0.235612,84886.0,84880.0,0.235624]
[1741980792522,0.3762,84891.0,84885.0,0.235612]
[1741980793407,0.3762,84891.0,84887.0,0.235604]
[1741980793605,0.3762,84891.0,84883.0,0.235616]
[1741980793927,0.3,84887.0,84885.0,0.002]
[1741980794533,0.3,84887.0,84885.0,0.23561]
[1741980795062,0.3,84890.0,84885.0,0.23561]
[1741980795725,0.3,84888.0,84885.0,0.23761]
[1741980796470,0.3,84888.0,84885.0,0.24061]
[1741980796672,0.3,84888.0,84885.0,0.23761]
[1741980796872,0.3,84888.0,84885.0,0.23561]
[1741980797048,0.387979,84891.0,84886.0,0.235608]
[1741980797476,0.247378,84890.0,84885.0,0.23861]
[1741980797817,0.247378,84890.0,84885.0,0.23761]
[1741980797993,0.3,84891.0,84889.0,0.2356]
[1741980798227,0.3,84893.0,84889.0,0.2356]
[1741980798431,0.3,84893.0,84890.0,0.235596]
[1741980799959,0.3,84895.0,84891.0,0.235594]
[1741980800160,0.3,84895.0,84892.0,0.235591]
[1741980800323,0.3,84895.0,84890.0,0.235597]
[1741980800526,0.001,84893.0,84890.0,0.235597]
[1741980801003,0.011779,84895.0,84890.0,0.235597]
[1741980801188,0.247371,84893.0,84887.0,0.235605]
[1741980801387,0.26584332,84893.0,84889.0,0.235601]
[1741980801579,0.31847232,84893.0,84889.0,0.235601]
[1741980801881,0.31847232,84893.0,84890.0,0.235597]
[1741980802104,0.31847232,84893.0,84891.0,0.235594]
[1741980802643,0.01847232,84893.0,84891.0,0.235594]
[1741980802842,0.31847232,84893.0,84890.0,0.235597]
[1741980803678,0.31847232,84893.0,84891.0,0.235594]
[1741980803880,0.31947232,84893.0,84890.0,0.235597]
[1741980804416,0.25406332,84893.0,84888.0,0.235603]
[1741980804823,0.01847232,84893.0,84889.0,0.2356]
[1741980805018,0.01847232,84893.0,84892.0,0.235593]
[1741980805264,0.01947232,84893.0,84890.0,0.235597]
[1741980805442,0.01947232,84893.0,84891.0,0.235594]
[1741980805979,0.301,84893.0,84889.0,0.2356]
[1741980806785,0.301,84893.0,84890.0,0.235597]
[1741980806988,0.301,84893.0,84889.0,0.2356]
[1741980807190,0.311779,84893.0,84889.0,0.2356]
[1741980807721,0.312779,84893.0,84889.0,0.2356]
[1741980807857,0.548372,84893.0,84887.0,0.235605]
[1741980808270,0.548372,84893.0,84888.0,0.235603]
[1741980808627,0.0184721,84892.0,84888.0,0.235603]
[1741980809225,0.3,84891.0,84887.0,0.235605]
[1741980809448,0.3,84891.0,84889.0,0.235601]
[1741980809648,0.3,84891.0,84890.0,0.235599]
[1741980809822,0.3,84891.0,84890.0,0.25013985]
[1741980810071,0.0184721,84892.0,84891.0,0.02631985]
[1741980810263,0.0184721,84892.0,84891.0,0.15261985]
[1741980811527,0.0184721,84892.0,84891.0,0.15361985]
[1741980812183,0.0184721,84892.0,84891.0,0.15479765]
[1741980814157,0.0184721,84892.0,84891.0,0.15779765]
[1741980814561,0.0184721,84892.0,84891.0,0.16079765]
[1741980814746,0.0184721,84892.0,84891.0,0.15961985]
[1741980816358,0.0184721,84892.0,84891.0,0.15978935]
[1741980819059,0.0184721,84892.0,84891.0,0.02171035]
[1741980819268,0.0184721,84892.0,84891.0,0.3771655]
[1741980819473,0.3302511,84892.0,84891.0,0.1415695]
[1741980819677,0.3302511,84892.0,84891.0,0.0071695]
[1741980819911,0.311779,84892.0,84891.0,0.0071695]
[1741980820111,0.3,84892.0,84891.0,0.0071695]
[1741980820893,0.311779,84895.0,84891.0,0.0031695]
[1741980821097,0.311779,84895.0,84891.0,0.0011695]
[1741980821292,0.311779,84895.0,84891.0,0.0021695]
[1741980821493,0.3,84895.0,84891.0,0.2377635]
[1741980821696,0.3,84895.0,84892.0,0.23559]
[1741980821895,0.3,84898.0,84893.0,0.235589]
[1741980822095,0.547357,84898.0,84892.0,0.235591]
[1741980822298,0.001,84895.0,84893.0,0.235588]
[1741980822663,0.3,84898.0,84893.0,0.235588]
[1741980822864,0.001,84895.0,84893.0,0.235588]
[1741980823715,0.01947055,84895.0,84893.0,0.235588]
[1741980823921,0.001,84895.0,84891.0,0.2357635]
[1741980824122,0.3,84896.0,84891.0,0.0001695]
[1741980824893,0.3,84894.0,84891.0,0.0001695]
[1741980825103,0.3,84894.0,84891.0,0.2357625]
[1741980825875,0.547362,84896.0,84891.0,0.2357625]
[1741980826883,0.0184707,84895.0,84891.0,0.2357625]
[1741980827103,0.0184707,84895.0,84891.0,0.0001695]
[1741980827104,0.547372,84892.0,84891.0,0.0001695]
[1741980827490,0.628072,84892.0,84891.0,0.0001695]
[1741980828772,0.628072,84892.0,84891.0,0.0011695]
[1741980829271,0.630072,84892.0,84891.0,0.0011695]
[1741980830538,0.630072,84892.0,84891.0,0.0001695]
[1741980830953,0.62360174,84892.0,84891.0,0.0001695]
[1741980832602,4.80730174,84892.0,84891.0,0.0001695]
[1741980832930,5.77973474,84892.0,84891.0,0.0001695]
[1741980833503,6.19363474,84892.0,84891.0,0.0001695]
[1741980833704,0.673128,84873.0,84872.0,0.0001696]
[1741980834331,0.69160495,84873.0,84872.0,0.0001696]
[1741980834735,0.673128,84873.0,84872.0,0.0001696]
[1741980834951,0.676128,84873.0,84872.0,0.0001696]
[1741980837604,0.69460484,84873.0,84872.0,0.0001696]
[1741980841028,0.70360433,84873.0,84872.0,0.0001696]
[1741980841277,0.247497,84849.0,84846.0,0.0001696]
[1741980841497,0.311785,84852.0,84846.0,0.2358886]
[1741980841899,0.247497,84849.0,84846.0,0.0001696]
[1741980842481,0.235707,84851.0,84846.0,0.2358886]
[1741980842685,0.25094551,84851.0,84846.0,0.0001696]
[1741980843102,0.235711,84850.0,84846.0,0.0001696]
[1741980843309,0.26273051,84851.0,84848.0,0.0041696]
[1741980843310,0.01523851,84851.0,84848.0,0.0041696]
[1741980843658,0.33026453,84852.0,84848.0,0.0041696]
[1741980843850,0.33026453,84852.0,84848.0,0.0001696]
[1741980844044,0.33026453,84852.0,84848.0,0.0041696]
[1741980844259,0.56597053,84852.0,84848.0,0.0001696]
[1741980844400,0.56597053,84852.0,84848.0,0.0031696]
[1741980844606,0.235709,84851.0,84848.0,0.0061696]
[1741980844806,0.235711,84850.0,84848.0,0.0001696]
[1741980845030,0.235709,84851.0,84848.0,0.0031696]
[1741980846246,0.011785,84849.0,84848.0,0.0061696]
[1741980846763,0.011785,84849.0,84848.0,0.0031696]
[1741980847127,0.011785,84849.0,84848.0,0.0061696]
[1741980847330,0.011785,84849.0,84848.0,0.0031696]
[1741980847752,0.011785,84849.0,84848.0,0.0041696]
[1741980848070,0.011785,84849.0,84848.0,0.0081696]
[1741980848481,0.011785,84849.0,84848.0,0.0041696]
[1741980848726,0.311785,84849.0,84848.0,0.0041696]
[1741980848895,0.311785,84849.0,84848.0,0.0061696]
[1741980851492,0.3,84849.0,84848.0,0.0041696]
[1741980852278,0.30892761,84849.0,84848.0,0.0041696]
[1741980852481,0.02071261,84849.0,84848.0,0.0041696]
[1741980852681,0.00892761,84849.0,84848.0,0.2398846]
[1741980852898,0.00892761,84849.0,84848.0,0.0041696]
[1741980853028,0.03357829,84852.0,84851.0,0.011785]
[1741980853834,0.03357829,84852.0,84850.0,0.23571]
[1741980854285,0.03357829,84852.0,84851.0,0.001]
[1741980854491,0.03357829,84852.0,84851.0,0.003]
[1741980854667,0.03357829,84852.0,84851.0,0.001]
[1741980854892,0.03357829,84852.0,84850.0,0.23571]
[1741980855099,0.03357829,84852.0,84850.0,0.23771]
[1741980855311,0.03357829,84852.0,84850.0,0.23571]
[1741980856397,0.03357829,84852.0,84850.0,0.23671]
[1741980856802,0.03357829,84852.0,84851.0,0.002]
[1741980857057,0.03357829,84852.0,84850.0,0.23671]
[1741980857581,0.03357829,84852.0,84851.0,0.011785]
[1741980857961,0.01847953,84852.0,84851.0,0.011785]
[1741980858189,0.01847953,84852.0,84851.0,0.012785]
[1741980858612,0.01847953,84852.0,84851.0,0.07232585]
[1741980858813,0.26058536,84880.0,84870.0,0.011782]
[1741980858963,0.3,84879.0,84871.0,0.370051]
[1741980859165,0.3,84875.0,84871.0,0.370051]
[1741980859370,0.011781,84876.0,84871.0,0.1344]
[1741980859569,0.2477682,84873.0,84871.0,0.1344]
[1741980859778,0.0121212,84873.0,84871.0,0.1344]
[1741980859950,0.011783,84866.0,84860.0,0.0818]
[1741980860160,0.235676,84862.0,84855.0,0.0818]
[1741980860533,0.011783,84863.0,84856.0,0.1344]
[1741980860746,0.011783,84861.0,84856.0,0.1344]
[1741980860947,0.3,84859.0,84856.0,0.1344]
[1741980861690,0.31847812,84859.0,84856.0,0.1344]
[1741980861891,0.31847812,84859.0,84856.0,0.370091]
[1741980862091,0.01847812,84859.0,84856.0,0.1344]
[1741980863072,0.01847812,84859.0,84856.0,0.1374]
[1741980863403,0.01847812,84859.0,84856.0,0.376091]
[1741980863615,0.01847812,84859.0,84857.0,0.235688]
[1741980863838,0.01847812,84859.0,84856.0,0.376091]
[1741980864679,0.01847812,84859.0,84856.0,0.373091]
[1741980866175,0.01847812,84859.0,84857.0,0.003]
[1741980866954,0.01847812,84859.0,84856.0,0.373091]
[1741980867271,0.01847812,84859.0,84856.0,0.370091]
[1741980867618,0.01847812,84859.0,84857.0,0.003]
[1741980867820,0.01847812,84859.0,84857.0,0.235689]
[1741980869635,0.01847812,84859.0,84857.0,0.238689]
[1741980869837,0.01847812,84859.0,84857.0,0.241689]
[1741980870314,0.01847812,84859.0,84857.0,0.006]
[1741980870660,0.33026212,84859.0,84857.0,0.006]
[1741980870864,0.011784,84858.0,84857.0,0.006]